bitfinex-derivatives/quotes_ETHF0:USTF0_20241024
["timestamp","ask_amount","ask_price","bid_price","bid_amount"]
[1729755844866,1.52198792,2551.3,2551.2,0.39234]
[1729755845067,1.52198792,2551.3,2551.1,1.95080792]
[1729755846573,1.52198792,2551.3,2551.1,1.95081792]
[1729755847672,1.52198792,2551.3,2551.1,5.15861792]
[1729755847872,1.52198792,2551.3,2551.1,1.95081792]
[1729755848068,1.52200792,2551.2,2551.1,4.02895]
[1729755848270,1.52200792,2551.2,2551.1,3.6366]
[1729755849265,1.52200792,2551.2,2551.1,0.4288]
[1729755849465,1.52200792,2551.2,2551.1,3.6366]
[1729755850093,1.52200792,2551.2,2551.1,0.4288]
[1729755858396,0.39237,2551.0,2550.9,3.2078]
[1729755858679,1.12966792,2551.0,2550.9,4.02668]
[1729755859087,1.52203792,2551.0,2550.9,4.02668]
[1729755859387,1.52203792,2551.0,2550.9,4.14938432]
[1729755859581,1.52203792,2551.0,2550.9,3.6343]
[1729755859781,1.52203792,2551.0,2550.9,0.4265]
[1729755860989,0.39239,2550.9,2550.6,1.42043189]
[1729755861288,4.93285382,2550.8,2550.7,0.55171703]
[1729755861675,0.39241,2550.8,2550.7,0.55171703]
[1729755862082,1.52207792,2550.8,2550.7,0.55171703]
[1729755862288,1.52207792,2550.8,2550.7,0.429]
[1729755886500,0.39242,2550.7,2550.6,0.8585]
[1729755886707,1.52208792,2550.7,2550.6,1.2783]
[1729755894108,5.82700113,2550.7,2550.6,1.2783]
[1729755895616,5.82700113,2550.7,2550.6,0.4198]
[1729755896138,4.30491321,2550.7,2550.4,0.8465]
[1729755896315,4.30491321,2550.7,2550.5,0.4274]
[1729755896509,1.12966792,2550.7,2550.6,0.39243]
[1729755898209,1.12966792,2550.7,2550.6,0.51515163]
[1729755898408,1.12966792,2550.7,2550.6,0.39243]
[1729755898708,1.12966792,2550.7,2550.6,0.51515165]
[1729755899109,1.12966792,2550.7,2550.6,0.39243]
[1729755899412,1.12966792,2550.7,2550.6,0.51515353]
[1729755899618,1.12966792,2550.7,2550.5,0.81984]
[1729755899821,1.12966792,2550.6,2550.5,0.81984]
[1729755900013,1.12966792,2550.6,2550.5,0.94256214]
[1729755900505,0.39235,2551.2,2550.9,0.39239]
[1729755900707,3.2078,2551.3,2551.0,2.38226792]
[1729755900708,1.12966792,2551.1,2551.0,2.38226792]
[1729755900911,1.12966792,2551.1,2551.0,1.37530629]
[1729755901106,1.52202792,2551.1,2551.0,1.37530629]
[1729755901313,1.52202792,2551.1,2551.0,1.2526]
[1729755912929,1.52202792,2551.1,2551.0,0.4035]
[1729755913123,5.66360384,2551.1,2551.0,0.4035]
[1729755913434,6.09080384,2551.1,2551.0,0.4035]
[1729755913832,6.49000384,2551.1,2551.0,0.4035]
[1729755915130,6.49000384,2551.1,2550.8,3.6002]
[1729755915131,0.39239,2550.9,2550.8,3.2078]
[1729755915432,1.12966792,2550.9,2550.8,3.6341]
[1729755915848,1.52205792,2550.9,2550.8,3.6341]
[1729755919146,1.52205792,2550.9,2550.7,0.8545]
[1729755919147,9.49688688,2550.9,2550.3,4.23580189]
[1729755919339,0.39244,2550.6,2550.5,1.3852]
[1729755919563,0.39244,2550.6,2550.5,0.5349227]
[1729755919838,0.39244,2550.6,2550.5,0.4122]
[1729755920044,0.8525,2550.7,2550.4,0.4276]
[1729755920249,9.23888075,2550.6,2550.2,0.4122]
[1729755920541,1.52214792,2550.3,2550.2,0.4122]
[1729755920935,0.39249,2550.2,2550.1,0.8238]
[1729755921244,1.52215792,2550.2,2550.1,0.8238]
[1729755921445,0.39252,2550.0,2549.9,0.973]
[1729755921739,1.12966792,2550.0,2549.9,1.76174]
[1729755921946,1.12966792,2550.0,2549.9,0.78874]
[1729755922240,1.12966792,2550.0,2549.9,0.3962]
[1729755922438,1.52218792,2550.0,2549.9,0.3962]
[1729755922742,1.12966792,2550.0,2549.9,1.91840792]
[1729755923039,3.2078,2550.4,2549.9,1.52586792]
[1729755923341,3.60026,2550.4,2550.3,0.39248]
[1729755923545,3.2078,2550.4,2550.3,0.39248]
[1729755923740,7.61640642,2550.4,2550.0,0.973]
[1729755924046,0.39249,2550.2,2550.0,1.36552]
[1729755924241,0.39249,2550.3,2550.1,0.4195]
[1729755924546,5.84883786,2550.2,2550.1,0.4195]
[1729755924845,1.52215792,2550.2,2550.1,0.4195]
[1729755930047,1.21779,2550.3,2550.1,0.4195]
[1729755930245,1.12966792,2550.2,2550.1,0.4195]
[1729755930546,5.48180486,2550.2,2550.1,0.4195]
[1729755930745,1.12966792,2550.2,2550.1,0.4195]
[1729755930950,1.52215792,2550.2,2550.1,0.4195]
[1729755935139,1.12966792,2550.2,2550.1,0.81201]
[1729755935647,1.52215792,2550.2,2550.1,0.4195]
[1729755935853,1.12966792,2550.2,2550.1,0.81201]
[1729755936350,1.52215792,2550.2,2550.1,0.4195]
[1729755940150,0.39252,2550.0,2549.9,3.604]
[1729755940355,1.52218792,2550.0,2549.9,4.577]
[1729755942651,1.52218792,2550.0,2549.9,1.3692]
[1729755943147,1.52218792,2550.0,2549.9,0.3962]
[1729755943350,1.52218792,2550.0,2549.9,0.78874]
[1729755943859,1.52218792,2550.0,2549.9,0.3962]
[1729755944661,1.52218792,2550.0,2549.9,0.78874]
[1729755945456,1.52218792,2550.0,2549.9,1.20704]
[1729755955269,1.52218792,2550.0,2549.9,4.41484]
[1729755957866,1.52218792,2550.0,2549.9,1.20704]
[1729755958069,1.52218792,2550.0,2549.9,4.41484]
[1729755960171,1.52218792,2550.0,2549.9,1.20704]
[1729755960564,0.8177,2550.3,2549.9,4.0223]
[1729755960876,1.12966792,2550.0,2549.9,5.54450792]
[1729755961373,1.12966792,2550.0,2549.9,4.41484]
[1729755962368,1.52218792,2550.0,2549.9,4.41484]
[1729755962677,1.12966792,2550.0,2549.9,4.53758865]
[1729755963671,1.12966792,2550.0,2549.9,1.32978865]
[1729755963878,1.12966792,2550.0,2549.9,4.53758865]
[1729755964287,1.12966792,2550.0,2549.9,4.41484]
[1729755964476,1.52218792,2550.0,2549.9,4.53758922]
[1729755964676,1.12966792,2550.0,2549.9,4.53758922]
[1729755965279,1.12966792,2550.0,2549.9,4.73398512]
[1729755965472,1.12966792,2550.0,2549.9,5.34772167]
[1729755968081,1.12966792,2550.0,2549.9,5.34772913]
[1729755968683,1.52218792,2550.0,2549.9,5.34772913]
[1729755969380,1.52218792,2550.0,2549.9,4.95518913]
[1729755969973,1.52218792,2550.0,2549.9,5.34772913]
[1729755970775,1.12966792,2550.0,2549.9,2.13992913]
[1729755970985,1.12966792,2550.0,2549.9,5.34772913]
[1729755971284,1.52218792,2550.0,2549.9,5.34772913]
[1729755971482,1.52218792,2550.0,2549.9,4.73398628]
[1729755971799,1.52218792,2550.0,2549.9,5.02859674]
[1729755971973,1.52218792,2550.0,2549.9,5.34774903]
[1729755972176,1.52218792,2550.0,2549.9,4.95520903]
[1729755972479,1.52218792,2550.0,2549.9,0.31915229]
[1729755973183,1.52218792,2550.0,2549.9,0.31916261]
[1729755973387,1.52218792,2550.0,2549.9,0.31916291]
[1729755973580,1.52218792,2550.0,2549.9,0.12275088]
[1729755974690,5.62256259,2550.0,2549.9,0.12275088]
[1729755975076,5.23004259,2550.0,2549.6,3.2078]
[1729755975283,1.52223792,2549.7,2549.6,3.2078]
[1729755975479,1.52223792,2549.7,2549.6,4.14085965]
[1729755975681,1.52223792,2549.7,2549.6,3.52700461]
[1729755975883,1.52223792,2549.7,2549.6,4.14086407]
[1729755976080,1.52223792,2549.7,2549.6,3.52700461]
[1729755976676,1.52223792,2549.7,2549.6,3.330571]
[1729755977086,1.2158,2549.9,2549.6,3.723161]
[1729755977287,0.39253,2550.0,2549.8,0.39256]
[1729755977486,1.12966792,2549.9,2549.8,0.39256]
[1729755977786,1.12966792,2549.9,2549.8,1.64497616]
[1729755978583,1.12966792,2550.0,2549.8,1.44883457]
[1729755978789,1.12966792,2550.0,2549.9,0.51529824]
[1729755982310,1.12966792,2550.0,2549.9,0.39254]
[1729755982587,3.6383,2550.3,2549.9,9.19197791]
[1729755982588,1.52214792,2550.3,2549.9,9.19197791]
[1729755982786,1.52214792,2550.3,2550.1,1.52216792]
[1729755983088,1.52214792,2550.3,2550.2,0.93385158]
[1729755984184,1.12966792,2550.3,2550.2,2.4560095]
[1729755984385,1.12966792,2550.3,2550.2,2.33325792]
[1729755984786,1.12966792,2550.3,2550.2,1.32632884]
[1729755985481,1.12966792,2550.3,2550.2,1.20359]
[1729755985686,1.12966792,2550.3,2550.2,1.32632804]
[1729755986190,1.12966792,2550.3,2550.2,2.29832804]
[1729755987088,1.12966792,2550.3,2550.2,2.29832613]
[1729755987682,1.52214792,2550.3,2550.2,1.90583613]
[1729755988081,5.44294792,2550.3,2550.2,0.12273613]
[1729755988290,9.39543868,2550.3,2550.0,0.4278]
[1729755988592,1.52217792,2550.1,2550.0,0.4278]
[1729755988788,0.39254,2549.9,2549.8,1.4023]
[1729755989089,0.39254,2549.9,2549.8,0.55306082]
[1729755989090,1.52220792,2549.9,2549.8,0.55306082]
[1729755989894,1.52220792,2549.9,2549.8,0.12276082]
[1729755990888,5.82219041,2549.9,2549.8,0.12276082]
[1729755991083,0.39257,2549.7,2549.6,4.6101]
[1729755991284,1.52223792,2549.7,2549.6,4.92929248]
[1729755991488,1.52223792,2549.7,2549.6,3.95729248]
[1729755991791,1.52223792,2549.7,2549.6,3.76086634]
[1729755991987,1.52223792,2549.7,2549.6,0.55306634]
[1729755992189,1.52223792,2549.7,2549.6,0.12276634]
[1729755992780,0.39259,2549.6,2549.5,0.8406]
[1729755992988,1.52225792,2549.6,2549.5,0.12277972]
[1729755994080,1.12966792,2549.6,2549.4,0.972]
[1729755994286,1.52226792,2549.5,2549.4,0.972]
[1729755994497,1.52226792,2549.5,2549.4,1.09477755]
[1729755995599,1.52226792,2549.5,2549.4,0.12277755]
[1729755995790,1.52226792,2549.5,2549.3,4.1798]
[1729755995992,1.52228792,2549.4,2549.3,4.1798]
[1729755996195,1.52228792,2549.4,2549.3,4.30258212]
[1729755996500,1.52228792,2549.4,2549.3,1.09478212]
[1729755997698,1.52228792,2549.4,2549.3,0.12278212]
[1729755998395,1.52228792,2549.4,2549.2,3.75581792]
[1729755998997,1.12966792,2549.3,2549.2,3.75581792]
[1729755999193,1.12966792,2549.3,2549.2,3.48595123]
[1729755999393,1.12966792,2549.3,2549.2,3.87860123]
[1729755999593,1.12966792,2549.3,2549.2,2.74893331]
[1729755999794,1.12966792,2549.3,2549.2,3.87860123]
[1729756001396,1.12966792,2549.3,2549.2,3.75581792]
[1729756001600,1.12966792,2549.3,2549.2,3.87860046]
[1729756001902,1.12966792,2549.4,2549.2,3.87860046]
[1729756002097,1.52228792,2549.4,2549.2,3.75581792]
[1729756002303,1.52228792,2549.4,2549.3,0.39263]
[1729756002304,1.12966792,2549.4,2549.3,0.39263]
[1729756002506,1.12966792,2549.4,2549.3,1.52229792]
[1729756002899,1.52228792,2549.4,2549.3,1.52229792]
[1729756003203,1.52228792,2549.4,2549.3,0.39263]
[1729756003398,1.52228792,2549.4,2549.2,3.75580792]
[1729756003910,1.12966792,2549.4,2549.2,3.36316792]
[1729756004098,1.52229792,2549.4,2549.2,3.75580792]
[1729756004407,1.52229792,2549.4,2549.3,0.39263]
[1729756004999,0.39263,2549.3,2549.2,3.75580792]
[1729756005199,1.12966792,2549.3,2549.2,3.75580792]
[1729756006506,1.12966792,2549.3,2549.2,3.75581792]
[1729756006899,1.12966792,2549.3,2549.2,2.62615]
[1729756007101,1.52229792,2549.3,2549.2,2.2335]
[1729756007303,1.12966792,2549.3,2549.2,2.62615]
[1729756007705,1.12966792,2549.3,2549.2,3.75581792]
[1729756008104,1.12966792,2549.3,2549.2,2.62615]
[1729756008304,1.52229792,2549.3,2549.2,2.62615]
[1729756009507,1.12966792,2549.3,2549.2,2.62615]
[1729756012311,1.12966792,2549.3,2549.2,3.36316792]
[1729756012516,1.2164,2549.8,2549.3,0.39262]
[1729756012517,1.12966792,2549.4,2549.3,0.39262]
[1729756012711,1.12966792,2549.4,2549.3,1.52228792]
[1729756013613,1.2164,2549.8,2549.3,1.12966792]
[1729756013918,1.12966792,2549.5,2549.4,1.52227792]
[1729756014220,1.12966792,2549.5,2549.4,0.39261]
[1729756014613,1.12966792,2549.5,2549.3,1.12966792]
[1729756014813,1.52226792,2549.5,2549.3,1.52228792]
[1729756015010,1.52226792,2549.5,2549.4,0.39262]
[1729756016518,1.12966792,2549.5,2549.4,0.39262]
[1729756018312,1.12966792,2549.5,2549.4,1.52228792]
[1729756021419,1.52225792,2549.6,2549.4,1.52228792]
[1729756021620,1.12966792,2549.6,2549.4,1.12966792]
[1729756021821,1.52225792,2549.6,2549.5,0.4185]
[1729756023421,1.12966792,2549.6,2549.2,3.33279792]
[1729756023723,1.52229792,2549.3,2549.2,0.4185]
[1729756024428,0.39268,2549.0,2548.9,1.3895]
[1729756024722,1.52234792,2549.0,2548.9,1.3895]
[1729756026026,1.52234792,2549.0,2548.9,0.4185]
[1729756026422,1.52234792,2549.0,2548.9,1.3895]
[1729756027522,1.52234792,2549.0,2548.9,0.4185]
[1729756028531,0.39271,2548.8,2548.7,0.4012]
[1729756028823,1.52237792,2548.8,2548.7,0.79392]
[1729756029226,1.52237792,2548.8,2548.7,0.4012]
[1729756030823,1.52237792,2548.8,2548.7,0.79392]
[1729756031933,1.52237792,2548.8,2548.7,0.4012]
[1729756034125,1.2477,2548.9,2548.7,2.04639857]
[1729756034126,1.12966792,2548.9,2548.7,2.04639857]
[1729756034329,0.39269,2549.0,2548.9,0.39268]
[1729756034330,1.12966792,2549.0,2548.9,0.39268]
[1729756037233,1.52234792,2549.0,2548.9,0.39268]
[1729756037433,1.12966792,2549.0,2548.9,0.39268]
[1729756037634,1.52234792,2549.0,2548.9,0.39268]
[1729756037828,1.12966792,2549.0,2548.9,0.39268]
[1729756038334,1.52234792,2549.0,2548.9,0.39268]
[1729756039036,4.4624,2549.3,2548.9,1.12966792]
[1729756039331,4.93316926,2549.2,2549.0,0.81797]
[1729756039634,0.39262,2549.4,2549.1,2.09966792]
[1729756039836,0.39262,2549.4,2549.2,0.80354]
[1729756040035,4.4859,2549.7,2549.2,0.80354]
[1729756040036,4.46001817,2549.5,2549.2,0.80354]
[1729756040340,0.39263,2549.3,2549.2,0.80354]
[1729756040644,1.52229792,2549.3,2549.2,0.80354]
[1729756042728,0.39265,2549.2,2549.1,1.77066]
[1729756042933,1.52231792,2549.2,2549.1,1.77066]
[1729756043234,1.56546792,2549.2,2549.1,1.77066]
[1729756043834,1.12966792,2549.2,2549.1,1.77066]
[1729756047539,0.4215,2549.6,2549.3,0.39263]
[1729756047540,0.39263,2549.4,2549.3,0.39263]
[1729756047841,1.12966792,2549.4,2549.2,0.39264]
[1729756048044,1.52229792,2549.3,2549.2,0.39264]
[1729756052143,1.12966792,2549.3,2549.2,0.39264]
[1729756052636,1.52229792,2549.3,2549.2,0.39264]
[1729756053245,1.12966792,2549.3,2549.1,4.5858]
[1729756053441,1.12966792,2549.2,2549.1,4.97846]
[1729756053638,1.12966792,2549.2,2549.1,5.10124858]
[1729756053840,1.12966792,2549.2,2549.1,5.10124845]
[1729756054238,1.52230792,2549.3,2549.2,0.39265]
[1729756054435,1.12966792,2549.3,2549.2,0.39265]
[1729756054842,1.12966792,2549.3,2549.2,1.36265]
[1729756056653,0.39263,2549.3,2549.2,1.36264]
[1729756058147,0.39263,2549.3,2549.2,0.39264]
[1729756058336,0.39263,2549.3,2549.2,1.36164]
[1729756058846,0.39263,2549.3,2549.2,0.39264]
[1729756059049,0.39263,2549.3,2549.2,1.36164]
[1729756059240,1.52229792,2549.3,2549.2,0.969]
[1729756059749,1.52230792,2549.3,2549.2,0.969]
[1729756060643,1.52230792,2549.3,2549.2,0.39265]
[1729756061242,1.52230792,2549.3,2549.1,4.00846]
[1729756061243,1.12966792,2549.3,2549.1,4.00846]
[1729756061560,1.93061792,2549.2,2549.1,3.6158]
[1729756061850,1.93061792,2549.2,2549.1,4.00846]
[1729756062053,1.93061792,2549.2,2549.1,4.97746]
[1729756062649,1.93061792,2549.2,2549.1,4.00846]
[1729756062954,1.93061792,2549.2,2549.1,4.97746]
[1729756063345,1.93061792,2549.2,2549.1,4.00846]
[1729756063650,1.93061792,2549.2,2549.1,4.97746]
[1729756064654,1.53796792,2549.2,2549.1,4.97746]
[1729756065347,1.93061792,2549.2,2549.1,4.97746]
[1729756065563,1.93061792,2549.2,2549.1,4.00846]
[1729756065949,1.93061792,2549.2,2549.1,4.97746]
[1729756066146,1.93061792,2549.2,2549.1,5.1002514]
[1729756066456,1.53796792,2549.2,2549.1,4.1312514]
[1729756066642,1.53796792,2549.2,2549.1,4.00846]
[1729756066846,1.53796792,2549.2,2549.1,4.97746]
[1729756067354,1.53796792,2549.2,2549.1,4.1312526]
[1729756067555,1.53796792,2549.2,2549.1,5.1002526]
[1729756067855,1.53796792,2549.2,2549.1,4.1312526]
[1729756068361,1.53796792,2549.2,2549.1,5.1002526]
[1729756069248,1.53796792,2549.2,2549.1,4.1312526]
[1729756069857,1.53796792,2549.2,2549.1,5.1002526]
[1729756070353,1.12966792,2549.2,2549.1,5.1002526]
[1729756070854,1.12966792,2549.2,2549.1,1.8924526]
[1729756071161,1.52230792,2549.3,2549.2,0.39265]
[1729756073650,1.12966792,2549.3,2549.2,3.60045]
[1729756073854,1.52229792,2549.3,2549.2,3.60045]
[1729756076363,1.52229792,2549.3,2549.2,3.72323894]
[1729756076757,1.52229792,2549.3,2549.2,0.51543894]
[1729756076952,1.52229792,2549.3,2549.2,3.72323894]
[1729756077560,1.52229792,2549.3,2549.2,0.51543894]
[1729756077857,1.52229792,2549.3,2549.2,3.72323894]
[1729756080463,1.12966792,2549.3,2549.2,3.72323894]
[1729756081261,1.52229792,2549.3,2549.2,3.72323948]
[1729756083559,1.12966792,2549.3,2549.2,3.72323948]
[1729756083761,1.52229792,2549.3,2549.2,3.72323948]
[1729756083962,1.52229792,2549.3,2549.2,4.13603948]
[1729756084362,1.52229792,2549.3,2549.2,4.33250171]
[1729756084765,1.52229792,2549.3,2549.2,4.33250109]
[1729756086864,0.39263,2549.3,2549.2,4.33250109]
[1729756087372,0.39263,2549.3,2549.2,3.93985109]
[1729756087869,0.39263,2549.3,2549.2,0.73205109]
[1729756088082,0.39263,2549.3,2549.2,3.93985109]
[1729756088471,0.39263,2549.3,2549.2,3.93984885]
[1729756088981,0.39263,2549.3,2549.2,4.33249885]
[1729756089573,0.39263,2549.3,2549.2,3.93984885]
[1729756090380,0.39263,2549.3,2549.2,3.52704885]
[1729756090578,13.99915714,2549.3,2549.0,0.4253]
[1729756090786,1.52232792,2549.1,2549.0,0.4253]
[1729756091176,3.2078,2549.6,2549.0,1.55496792]
[1729756091377,0.39263,2549.4,2549.2,1.52230792]
[1729756091576,1.52229792,2549.4,2549.2,1.52230792]
[1729756091781,1.52229792,2549.4,2549.3,0.3995]
[1729756092272,1.12966792,2549.4,2549.3,0.79213]
[1729756092676,1.52228792,2549.4,2549.3,0.79213]
[1729756093383,1.12966792,2549.4,2549.3,0.79213]
[1729756094786,1.12966792,2549.4,2549.3,0.98858558]
[1729756095280,1.12966792,2549.4,2549.3,0.79213]
[1729756095885,0.4027,2549.5,2549.4,0.39262]
[1729756097786,1.53236792,2549.5,2549.4,0.39262]
[1729756098174,1.53236792,2549.5,2549.3,0.3995]
[1729756098379,1.52228792,2549.4,2549.3,0.3995]
[1729756098587,2.37188792,2549.4,2549.3,0.3995]
[1729756099378,1.97926792,2549.4,2549.1,1.42065189]
[1729756099594,1.52231792,2549.2,2549.0,2.38867189]
[1729756099790,0.4259,2549.1,2549.0,2.81377189]
[1729756099988,0.4259,2549.1,2549.0,2.59619299]
[1729756100192,0.4259,2549.1,2549.0,2.59621647]
[1729756100387,0.81856,2549.1,2549.0,3.11190979]
[1729756100690,2.37352792,2549.1,2549.0,0.62157187]
[1729756100878,2.37352792,2549.1,2549.0,0.4251]
[1729756101685,2.37352792,2549.1,2549.0,1.55476792]
[1729756102689,0.8512,2549.1,2549.0,2.07024636]
[1729756102891,0.4259,2549.1,2549.0,2.07024636]
[1729756103085,0.4259,2549.1,2549.0,2.26671433]
[1729756103692,0.81856,2549.1,2549.0,2.07024636]
[1729756104440,0.81856,2549.1,2549.0,1.94744792]
[1729756104583,0.81856,2549.1,2549.0,2.07024681]
[1729756104786,0.81856,2549.1,2549.0,2.07024683]
[1729756105182,0.4259,2549.1,2549.0,2.07024683]
[1729756105495,0.81856,2549.1,2549.0,2.07024683]
[1729756105897,0.81856,2549.1,2549.0,2.07024597]
[1729756107795,1.25576,2549.1,2549.0,2.07024597]
[1729756108397,1.25576,2549.1,2549.0,1.67756597]
[1729756108997,1.25576,2549.1,2549.0,1.67756767]
[1729756109416,1.25576,2549.1,2549.0,2.07024767]
[1729756110295,2.38542792,2549.1,2549.0,0.12279975]
[1729756110489,13.73188153,2549.1,2549.0,0.12279975]
[1729756110795,0.39269,2548.9,2548.8,2.55386981]
[1729756110992,0.39269,2548.9,2548.8,3.06938728]
[1729756111195,0.39269,2548.9,2548.8,2.04138539]
[1729756111598,0.39269,2548.9,2548.8,1.64867539]
[1729756111791,1.52235792,2548.9,2548.8,1.64867539]
[1729756111992,1.52235792,2548.9,2548.8,0.51900747]
[1729756112797,1.52235792,2548.9,2548.8,0.91171747]
[1729756112997,1.52235792,2548.9,2548.8,0.51900747]
[1729756113699,1.52235792,2548.9,2548.8,0.12280747]
[1729756114002,1.52235792,2548.9,2548.8,1.25247539]
[1729756114299,1.52235792,2548.9,2548.8,1.12966792]
[1729756114499,0.39271,2548.8,2548.7,1.12966792]
[1729756114702,1.92887792,2548.8,2548.7,0.1228163]
[1729756114891,1.53616792,2548.8,2548.6,1.43240189]
[1729756115093,1.92658792,2548.7,2548.6,1.43240189]
[1729756115297,1.92658792,2548.7,2548.6,2.68489003]
[1729756116294,1.92658792,2548.7,2548.6,1.53406792]
[1729756123600,0.79692,2548.7,2548.6,1.53406792]
[1729756123806,0.39275,2548.6,2548.4,5.39466]
[1729756124108,0.39274,2548.6,2548.5,1.12966792]
[1729756124307,0.82264,2548.6,2548.5,1.12966792]
[1729756125910,0.82264,2548.6,2548.4,0.8271]
[1729756125911,1.55956792,2548.6,2548.4,0.8271]
[1729756126107,1.95230792,2548.6,2548.5,1.12966792]
[1729756126507,0.39276,2548.5,2548.4,1.54796792]
[1729756126806,1.92342792,2548.5,2548.4,1.54796792]
[1729756127206,0.79376,2548.5,2548.4,1.54796792]
[1729756127609,0.39276,2548.5,2548.4,1.54796792]
[1729756128312,1.95231792,2548.6,2548.4,1.94073792]
[1729756128511,1.95231792,2548.6,2548.5,1.12966792]
[1729756135819,1.95230792,2548.6,2548.5,1.12966792]
[1729756137221,1.95230792,2548.6,2548.5,1.52242792]
[1729756137609,1.95230792,2548.6,2548.5,1.12966792]
[1729756138007,1.55956792,2548.6,2548.5,1.52242792]
[1729756138215,1.95230792,2548.6,2548.5,1.52242792]
[1729756138424,1.53386792,2548.7,2548.5,1.12966792]
[1729756138626,0.79693,2548.7,2548.6,1.52240792]
[1729756138920,6.43485383,2548.7,2548.6,1.52240792]
[1729756139522,4.50825591,2548.7,2548.6,1.52240792]
[1729756139715,3.2078,2548.9,2548.8,0.39271]
[1729756139909,4.33746792,2548.9,2548.8,1.52237792]
[1729756141021,3.2078,2548.9,2548.8,1.52237792]
[1729756141323,1.12966792,2549.1,2548.8,2.09666792]
[1729756141622,1.12966792,2549.1,2549.0,0.39268]
[1729756142319,1.52232792,2549.1,2548.9,2.77374792]
[1729756142525,1.52232792,2549.1,2549.0,1.12966792]
[1729756142716,1.52232792,2549.1,2549.0,1.52234792]
[1729756143823,1.52232792,2549.1,2548.8,0.967]
[1729756144032,1.52232792,2549.1,2548.9,1.52235792]
[1729756144033,1.12966792,2549.0,2548.9,1.52235792]
[1729756144523,1.12966792,2549.0,2548.9,1.95175792]
[1729756146119,1.52233792,2549.1,2548.9,1.95175792]
[1729756146722,1.52233792,2549.1,2549.0,1.12966792]
[1729756146925,1.52233792,2549.1,2549.0,1.54426792]
[1729756149118,4.4516,2549.3,2549.0,1.54426792]
[1729756149433,1.12966792,2549.1,2549.0,1.93693792]
[1729756149622,1.52232792,2549.1,2549.0,1.93693792]
[1729756149924,1.12966792,2549.1,2549.0,1.93693792]
[1729756150517,1.52232792,2549.1,2549.0,1.93693792]
[1729756150723,1.12966792,2549.1,2549.0,1.93693792]
[1729756150914,1.12966792,2549.1,2549.0,1.54426792]
[1729756151118,1.52232792,2549.1,2549.0,0.80728]
[1729756151519,1.52232792,2549.1,2549.0,0.4146]
[1729756152025,1.52232792,2549.1,2549.0,0.80728]
[1729756152427,1.52232792,2549.1,2549.0,0.4146]
[1729756165634,1.12966792,2549.1,2548.8,1.12966792]
[1729756165840,1.52235792,2548.9,2548.8,0.4132]
[1729756166540,1.91995792,2548.9,2548.8,0.4132]
[1729756166840,0.39272,2548.7,2548.6,1.12966792]
[1729756167041,0.39272,2548.7,2548.6,1.52240792]
[1729756167346,0.39274,2548.6,2548.5,2.09466792]
[1729756167836,0.39274,2548.6,2548.5,1.12966792]
[1729756168935,0.39276,2548.5,2548.4,1.45299081]
[1729756169237,1.52242792,2548.5,2548.4,2.91866792]
[1729756170940,1.52242792,2548.5,2548.4,1.95366792]
[1729756171141,1.52242792,2548.5,2548.4,1.54286792]
[1729756175943,1.52242792,2548.5,2548.4,1.12966792]
[1729756177248,0.39277,2548.4,2548.3,1.12966792]
[1729756177547,2.35263792,2548.4,2548.3,1.12966792]
[1729756179146,2.35263792,2548.4,2548.3,1.55176792]
[1729756186548,1.95986792,2548.4,2548.3,1.94455792]
[1729756186749,2.35263792,2548.4,2548.3,1.94455792]
[1729756187348,1.75945118,2548.6,2548.3,1.55176792]
[1729756187552,1.75945118,2548.6,2548.5,0.39276]
[1729756187553,1.52241792,2548.6,2548.5,0.39276]
[1729756187762,1.12966792,2548.6,2548.5,0.39276]
[1729756187955,3.60053,2548.7,2548.5,1.92872792]
[1729756188151,1.12966792,2548.6,2548.5,1.92872792]
[1729756188354,5.66198948,2548.6,2548.5,1.92872792]
[1729756189265,6.05472948,2548.6,2548.5,1.92872792]
[1729756189452,6.05472948,2548.6,2548.5,1.53596792]
[1729756189755,6.05472948,2548.6,2548.5,1.92872792]
[1729756191058,1.52240792,2548.6,2548.5,1.92872792]
[1729756192053,3.2078,2548.7,2548.5,1.53596792]
[1729756192255,0.39274,2548.6,2548.5,1.92871792]
[1729756192558,1.52240792,2548.6,2548.5,1.92871792]
[1729756193459,1.52240792,2548.6,2548.5,1.53596792]
[1729756193765,1.52240792,2548.6,2548.5,0.4063]
[1729756194063,0.39276,2548.5,2548.4,1.52242792]
[1729756194259,2.32592792,2548.5,2548.4,0.39276]
[1729756194453,0.39277,2548.4,2548.3,2.48644792]
[1729756194658,1.52243792,2548.4,2548.3,1.52244792]
[1729756195457,1.52243792,2548.4,2548.3,1.12966792]
[1729756197050,0.39277,2548.4,2548.3,1.12966792]
[1729756197250,1.52243792,2548.4,2548.3,1.12966792]
[1729756197449,1.52243792,2548.4,2548.3,1.52245792]
[1729756197654,0.39277,2548.4,2548.3,1.52245792]
[1729756198061,0.39277,2548.4,2548.3,1.12966792]
[1729756198961,0.39277,2548.4,2548.3,1.52245792]
[1729756199159,0.39277,2548.4,2548.3,1.12966792]
[1729756199362,1.52243792,2548.4,2548.3,1.52726792]
[1729756199967,2.32592792,2548.5,2548.3,1.52726792]
[1729756200266,2.32592792,2548.5,2548.3,1.92004792]
[1729756202457,2.32592792,2548.5,2548.4,1.52243792]
[1729756202458,0.4078,2548.5,2548.4,1.52243792]
[1729756202655,1.53746792,2548.5,2548.4,1.52243792]
[1729756204356,1.12966792,2548.7,2548.4,1.25249131]
[1729756204570,1.12966792,2548.6,2548.5,0.39275]
[1729756204964,1.12966792,2548.6,2548.4,1.12966792]
[1729756205164,1.12966792,2548.5,2548.4,1.52243792]
[1729756205366,1.12966792,2548.5,2548.4,1.64526085]
[1729756206668,1.12966792,2548.5,2548.4,0.51559293]
[1729756206975,1.52242792,2548.5,2548.4,1.64526085]
[1729756207178,1.52242792,2548.5,2548.4,1.52243792]
[1729756207497,1.12966792,2548.5,2548.4,1.52243792]
[1729756207776,1.52242792,2548.5,2548.4,2.25937798]
[1729756207969,2.35382792,2548.5,2548.4,2.25937798]
[1729756208663,1.96106792,2548.5,2548.4,2.25937798]
[1729756209867,1.96106792,2548.5,2548.4,2.45589326]
[1729756210873,0.8314,2548.5,2548.4,2.45589326]
[1729756211172,0.8314,2548.5,2548.4,3.11911449]
[1729756211375,0.8314,2548.5,2548.4,3.43844644]
[1729756212084,0.4068,2548.5,2548.4,3.43844644]
[1729756213377,0.6504406,2548.5,2548.4,3.43844644]
[1729756213978,3.60049,2548.9,2548.8,0.39271]
[1729756214285,1.52235792,2549.0,2548.8,1.6451979]
[1729756214474,1.52235792,2549.0,2548.8,1.52237792]
[1729756214679,1.52235792,2549.0,2548.9,0.4271]
[1729756215392,1.52235792,2549.0,2548.9,0.81979]